bitfinex/quotes_ETHUSD_20230830
["timestamp","ask_amount","ask_price","bid_price","bid_amount"]
[1693359138087,23.68894398,1718.4,1718.2,0.60823803]
[1693359138295,3.0,1718.3,1718.2,0.60823803]
[1693359138608,14.6394,1718.3,1718.2,0.60823803]
[1693359141305,15.45281484,1718.3,1718.2,0.60823803]
[1693359142291,15.45281484,1718.3,1718.1,0.75823803]
[1693359142678,21.27251484,1718.3,1718.1,0.75823803]
[1693359145377,22.67951484,1718.3,1718.1,0.1]
[1693359146501,1.407,1718.2,1718.1,0.1]
[1693359146688,20.912203,1718.2,1718.1,0.1]
[1693359146883,23.912203,1718.2,1718.1,0.1]
[1693359147716,24.145264,1718.2,1718.1,0.1]
[1693359149710,24.145264,1718.2,1718.0,0.1]
[1693359150015,3.0,1718.1,1718.0,0.1]
[1693359150216,22.506543,1718.1,1718.0,0.1]
[1693359151420,25.38002365,1718.1,1718.0,0.1]
[1693359153801,25.38002365,1718.1,1717.9,0.1]
[1693359154495,22.506543,1718.1,1717.9,0.1]
[1693359161649,1.407,1718.0,1717.9,0.1]
[1693359161816,19.8535143,1718.0,1717.9,0.1]
[1693359162017,22.8535143,1718.0,1717.9,0.1]
[1693359162246,24.2605143,1718.0,1717.9,0.1]
[1693359163210,27.13399495,1718.0,1717.9,0.1]
[1693359163424,28.28565129,1718.0,1717.9,0.1]
[1693359163806,2.95,1717.9,1717.8,0.04321068]
[1693359164011,30.02809465,1717.9,1717.8,0.04321068]
[1693359164213,30.60579465,1717.9,1717.8,0.04321068]
[1693359164665,30.60579465,1717.9,1717.6,1.0748938]
[1693359164854,5.87348065,1717.8,1717.6,1.0748938]
[1693359165029,23.87426807,1717.7,1717.6,1.0748938]
[1693359165358,24.54592441,1717.7,1717.6,1.0748938]
[1693359165663,26.87426807,1717.7,1717.6,1.0748938]
[1693359166035,28.28126807,1717.7,1717.6,1.0748938]
[1693359166959,28.28126807,1717.7,1717.6,0.6748938]
[1693359169068,31.15474872,1717.7,1717.6,0.6748938]
[1693359169443,31.15474872,1717.7,1717.6,0.3670795]
[1693359169854,29.74774872,1717.7,1717.6,0.3670795]
[1693359170277,26.87426807,1717.7,1717.6,0.3670795]
[1693359170766,26.87426807,1717.7,1717.6,0.2379804]
[1693359172268,14.64346,1717.7,1717.6,0.2379804]
[1693359172931,20.46519,1717.7,1717.6,0.2379804]
[1693359175048,14.64346,1717.7,1717.6,0.2379804]
[1693359175449,20.46519,1717.7,1717.6,0.2379804]
[1693359176692,14.64346,1717.7,1717.6,0.2379804]
[1693359176987,5.82122,1717.9,1717.8,0.05]
[1693359177215,6.29133805,1718.0,1717.8,1.457]
[1693359177488,12.11222805,1718.0,1717.8,0.05]
[1693359178289,6.29133805,1718.0,1717.8,1.457]
[1693359180186,3.0,1717.9,1717.8,1.457]
[1693359182593,3.47055805,1718.0,1717.8,1.457]
[1693359182917,3.0,1718.0,1717.8,1.457]
[1693359183316,3.0,1718.0,1717.8,0.05]
[1693359184204,3.0,1718.0,1717.8,1.457]
[1693359184406,3.0,1718.0,1717.9,1.407]
[1693359184605,8.82038,1718.1,1718.0,0.05]
[1693359186115,3.0,1718.1,1718.0,0.05]
[1693359187017,3.0,1718.1,1718.0,1.457]
[1693359187313,3.46263734,1718.2,1718.0,1.457]
[1693359187515,3.46263734,1718.2,1718.0,0.05]
[1693359189046,0.46263734,1718.2,1718.1,1.407]
[1693359189343,5.81887,1718.6,1718.4,0.05]
[1693359189526,5.81903,1718.5,1718.4,0.05]
[1693359189758,11.81144316,1718.6,1718.4,0.05]
[1693359189921,5.81902,1718.5,1718.4,0.05]
[1693359190440,8.81902,1718.5,1718.4,0.05]
[1693359190793,14.63804,1718.5,1718.4,0.05]
[1693359192126,20.45706,1718.5,1718.2,2.2878]
[1693359192305,4.463804,1718.4,1718.2,2.2878]
[1693359192511,11.6394,1718.3,1718.2,2.2878]
[1693359192753,14.6394,1718.3,1718.2,2.2878]
[1693359196678,20.4591,1718.3,1718.0,0.05]
[1693359196821,11.64076,1718.1,1718.0,0.05]
[1693359197022,14.64076,1718.1,1718.0,0.05]
[1693359197223,14.64076,1718.1,1717.9,2.3906]
[1693359197447,3.0,1718.0,1717.9,2.3906]
[1693359197653,8.82072,1718.0,1717.9,2.3906]
[1693359198032,3.0,1718.0,1717.9,2.3906]
[1693359198233,5.82021,1718.2,1718.1,0.05]
[1693359198458,9.984215,1718.2,1718.1,0.05]
[1693359199848,8.82021,1718.2,1718.1,0.05]
[1693359203180,14.64041,1718.2,1718.1,0.05]
[1693359205185,8.8202,1718.2,1718.1,0.05]
[1693359211138,14.64024,1718.2,1718.1,0.05]
[1693359212174,20.46028,1718.2,1717.9,2.3906]
[1693359212475,5.82072,1718.0,1717.9,0.05]
[1693359212978,8.82072,1718.0,1717.9,0.05]
[1693359214861,8.77072,1718.0,1717.9,0.05]
[1693359215763,8.72072,1718.0,1717.9,0.05]
[1693359216496,8.67072,1718.0,1717.9,0.05]
[1693359217203,8.62072,1718.0,1717.9,0.05]
[1693359217681,8.57072,1718.0,1717.9,0.05]
[1693359218396,8.52072,1718.0,1717.9,0.05]
[1693359218808,8.47072,1718.0,1717.9,0.05]
[1693359219481,8.42072,1718.0,1717.9,0.05]
[1693359221799,20.06216,1718.0,1717.9,0.05]
[1693359221981,22.068376,1718.0,1717.9,0.05]
[1693359222181,16.247656,1718.0,1717.9,0.05]
[1693359222982,22.068376,1718.0,1717.7,0.05]
[1693359223182,11.64278,1717.8,1717.7,0.05]
[1693359223398,17.46417,1717.8,1717.7,0.05]
[1693359223602,23.092713,1717.8,1717.6,0.2379804]
[1693359223800,3.0,1717.7,1717.6,0.2379804]
[1693359223992,20.46519,1717.7,1717.6,0.2379804]
[1693359226130,20.703171,1717.7,1717.6,0.2379804]
[1693359226907,14.881441,1717.7,1717.6,0.2379804]
[1693359227097,16.44749596,1717.7,1717.6,0.2379804]
[1693359227509,16.20951496,1717.7,1717.6,0.2379804]
[1693359228683,14.64346,1717.7,1717.6,0.2379804]
[1693359233123,8.82173,1717.7,1717.6,0.2379804]
[1693359233330,3.0,1717.7,1717.6,0.2379804]
[1693359233663,1.52945835,1718.0,1717.9,0.05]
[1693359233932,0.17349102,1718.0,1717.9,0.05]
[1693359235628,0.17349102,1718.0,1717.9,1.457]
[1693359235830,6.28159038,1718.3,1717.9,1.457]
[1693359236025,5.81974,1718.3,1718.2,0.05]
[1693359236231,7.29134454,1718.4,1718.2,0.05]
[1693359236897,3.0,1718.3,1718.2,0.05]
[1693359237096,7.29134454,1718.4,1718.2,0.05]
[1693359237097,1.47198454,1718.4,1718.2,0.05]
[1693359237319,0.89428454,1718.4,1718.2,0.05]
[1693359237523,5.81918,1718.5,1718.2,0.05]
[1693359237721,5.81918,1718.5,1718.1,1.407]
[1693359237722,5.81918,1718.5,1718.4,0.05]
[1693359238336,11.81138316,1718.6,1718.4,0.05]
[1693359238531,3.0,1718.5,1718.4,0.05]
[1693359238702,8.81902,1718.5,1718.4,0.05]
[1693359240220,14.63804,1718.5,1718.4,0.05]
[1693359241741,8.81902,1718.5,1718.4,0.05]
[1693359242941,14.63804,1718.5,1718.4,0.05]
[1693359243240,8.81902,1718.5,1718.4,0.05]
[1693359244041,14.63804,1718.5,1718.4,0.05]
[1693359244414,3.0,1718.5,1718.4,0.05]
[1693359245226,8.81902,1718.5,1718.4,0.05]
[1693359247019,3.0,1718.5,1718.4,0.05]
[1693359247947,3.0,1718.5,1718.4,0.058438]
[1693359248348,1.52570763,1718.6,1718.4,0.058438]
[1693359248514,0.17367316,1718.6,1718.4,0.058438]
[1693359249840,3.17367316,1718.6,1718.4,0.058438]
[1693359250648,3.17367316,1718.6,1718.5,1.407]
[1693359250951,0.17367316,1718.6,1718.5,1.407]
[1693359251128,3.17367316,1718.6,1718.5,1.407]
[1693359251331,0.17367316,1718.6,1718.5,1.407]
[1693359256662,3.0,1718.7,1718.6,0.05]
[1693359256870,3.0,1718.8,1718.6,1.457]
[1693359258477,3.17480154,1718.8,1718.6,1.457]
[1693359258774,3.17480154,1718.8,1718.6,4.33048065]
[1693359258974,3.17480154,1718.8,1718.7,0.43304807]
[1693359260151,0.17480154,1718.8,1718.7,0.43304807]
[1693359264079,0.17480154,1718.8,1718.7,1.84004807]
[1693359265269,0.17480154,1718.8,1718.7,4.71352872]
[1693359265480,4.32572032,1719.0,1718.7,4.71352872]
[1693359265687,4.32572032,1719.0,1718.9,0.05]
[1693359265891,4.32572032,1719.0,1718.9,2.92348065]
[1693359267161,3.46427988,1719.0,1718.9,4.33048065]
[1693359267359,0.46427988,1719.0,1718.9,4.33048065]
[1693359267590,3.0,1719.1,1718.9,2.92348065]
[1693359267788,3.0,1719.1,1719.0,0.29234807]
[1693359268192,1.8601,1719.2,1719.1,0.05]
[1693359268550,0.8588873,1719.2,1719.1,0.05]
[1693359268889,11.63293,1719.3,1719.1,0.05]
[1693359269084,5.81642,1719.3,1719.1,0.05]
[1693359269891,3.0,1719.2,1719.1,0.05]
[1693359274105,8.81665,1719.2,1719.1,0.05]
[1693359274392,16.24871133,1719.2,1719.1,0.05]
[1693359281304,14.6333,1719.2,1719.1,0.05]
[1693359292218,20.44995,1719.2,1719.1,0.05]
[1693359294129,1.407,1719.0,1718.6,0.05]
[1693359294306,1.407,1719.0,1718.4,0.61753681]
[1693359294307,1.407,1718.8,1718.4,0.008438]
[1693359294629,5.81841,1718.7,1718.4,0.008438]
[1693359295127,8.81871,1718.6,1718.4,0.008438]
[1693359296737,14.63742,1718.6,1718.4,0.008438]
[1693359298538,8.81871,1718.6,1718.4,0.008438]
[1693359299019,14.63742,1718.6,1718.4,0.008438]
[1693359300497,20.45613,1718.6,1718.4,0.008438]
[1693359300832,16.862293,1718.6,1718.4,0.008438]
[1693359301793,14.63742,1718.6,1718.4,0.008438]
[1693359305937,15.10826587,1718.6,1718.4,0.008438]
[1693359306236,15.97030871,1718.6,1718.4,0.008438]
[1693359306731,16.14264839,1718.6,1718.4,0.008438]
[1693359307340,9.46189555,1718.6,1718.4,0.008438]
[1693359308530,9.46189555,1718.6,1718.4,2.88191865]
[1693359309639,9.46189555,1718.6,1718.4,0.008438]
[1693359309945,15.28060555,1718.6,1718.4,0.008438]
[1693359310241,17.47800707,1718.6,1718.4,0.008438]
[1693359312307,15.28060555,1718.6,1718.4,0.008438]
[1693359313846,9.46189555,1718.6,1718.4,0.008438]
[1693359314049,9.46189555,1718.6,1718.4,2.88191865]
[1693359314050,3.64318555,1718.6,1718.4,2.88191865]
[1693359314345,0.47084587,1718.6,1718.4,2.88191865]
[1693359314546,14.63636,1718.8,1718.4,2.88191865]
[1693359314754,14.63636,1718.8,1718.4,3.31081051]
[1693359314954,14.63636,1718.8,1718.4,5.50981051]
[1693359315753,14.81200938,1718.8,1718.4,5.50981051]
[1693359316141,8.99374938,1718.8,1718.4,5.50981051]
[1693359316552,8.99374938,1718.8,1718.5,2.87348065]
[1693359316745,8.99374938,1718.8,1718.5,3.4244617]
[1693359316923,9.86350321,1718.8,1718.5,3.4244617]
[1693359317321,3.17564938,1718.8,1718.5,4.8314617]
[1693359317520,3.0,1718.8,1718.5,4.8314617]
[1693359317726,3.0,1718.9,1718.5,4.8314617]
[1693359317920,3.0,1718.9,1718.6,0.48314617]
[1693359318120,5.81778,1718.9,1718.6,3.35662682]
[1693359319621,3.0,1718.8,1718.6,3.35662682]
[1693359325263,3.0,1718.8,1718.6,2.87348065]
[1693359327338,3.0,1718.8,1718.5,1.95798105]
[1693359327339,8.81803,1718.8,1718.4,5.63632986]
[1693359327556,8.81803,1718.8,1718.4,8.50981051]
[1693359329166,3.0,1718.8,1718.4,9.91681051]
[1693359329486,3.0,1718.8,1718.5,0.99168105]
[1693359331750,14.63608,1718.8,1718.4,5.50981051]
[1693359331950,14.63608,1718.8,1718.4,5.08091865]
[1693359333589,15.10964958,1718.8,1718.4,5.08091865]
[1693359342319,15.28631849,1718.8,1718.4,5.08091865]
[1693359343572,9.46827849,1718.8,1718.4,5.08091865]
[1693359343775,3.65023849,1718.8,1718.5,3.38157252]
[1693359346477,3.47356958,1718.8,1718.5,3.38157252]
[1693359347509,3.0,1718.7,1718.5,3.38157252]
[1693359347707,0.47356958,1718.8,1718.5,3.38157252]
[1693359348013,4.8792,1718.9,1718.5,3.38157252]
[1693359348189,4.8792,1718.9,1718.6,0.33815725]
[1693359348509,4.8792,1718.9,1718.6,3.2116379]
[1693359348724,0.46851379,1719.0,1718.8,1.407]
[1693359348886,0.46851379,1719.0,1718.9,2.87348065]
[1693359349088,13.51866614,1719.3,1718.9,3.30152871]
[1693359349788,7.70216614,1719.3,1718.9,3.30152871]
[1693359350117,8.17137339,1719.3,1718.9,3.30152871]
[1693359350315,3.0,1719.2,1718.9,3.30152871]
[1693359350485,3.0,1719.2,1719.0,0.33015287]
[1693359350680,3.0,1719.2,1719.0,3.20363352]
[1693359351082,8.81674,1719.2,1719.0,2.87348065]
[1693359351299,8.81674,1719.2,1718.8,1.407]
[1693359351507,14.63348,1719.2,1718.7,3.7208]
[1693359351810,16.99955735,1719.2,1718.7,6.59428065]
[1693359352593,3.0,1719.2,1718.8,4.28048065]
[1693359353381,3.0,1719.2,1718.9,1.407]
[1693359353584,0.63979339,1719.3,1719.1,1.407]
[1693359353836,0.17058614,1719.3,1719.1,4.28048065]
[1693359353994,0.17058614,1719.3,1719.1,4.94586872]
[1693359354811,0.17058614,1719.3,1719.1,3.53886872]
[1693359355714,0.17058614,1719.3,1719.2,2.87348065]
[1693359357187,3.0,1719.4,1719.2,2.87348065]
[1693359358310,3.0,1719.4,1719.2,3.36806752]
[1693359359382,3.4704622,1719.5,1719.3,1.407]
[1693359359587,3.0,1719.5,1719.4,2.87348065]
[1693359359815,3.0,1719.6,1719.4,3.30152871]
[1693359360337,5.98545565,1719.7,1719.4,4.70852871]
[1693359360487,6.45376763,1719.7,1719.4,4.70852871]
[1693359361595,3.0,1719.6,1719.4,4.70852871]
[1693359365325,3.0,1719.6,1719.4,2.87348065]
[1693359365851,8.81539,1719.6,1719.4,2.87348065]
[1693359366146,8.81539,1719.6,1719.3,2.2153]
[1693359366376,8.81539,1719.6,1719.3,5.08878065]
[1693359369371,14.63078,1719.6,1718.9,3.60909881]
[1693359369575,2.783939,1719.5,1719.0,3.8843808]
[1693359369721,2.783939,1719.5,1719.0,2.87348065]
[1693359369918,3.0,1719.4,1719.0,3.7411186]
[1693359374048,3.0,1719.4,1719.0,6.7411186]
[1693359375739,3.0,1719.4,1719.0,8.1481186]
[1693359376252,4.9024,1719.5,1719.0,8.1481186]
[1693359376463,10.7181,1719.5,1719.0,8.1481186]
[1693359376666,10.7181,1719.5,1719.1,0.81481186]
[1693359376837,10.7181,1719.5,1719.2,2.87348065]
[1693359377466,10.7181,1719.5,1719.2,5.26068065]
[1693359379435,11.18051697,1719.5,1719.2,5.26068065]
[1693359379773,16.99621697,1719.5,1719.2,5.26068065]
[1693359379934,16.99621697,1719.5,1719.2,5.8682299]
[1693359382541,22.81191697,1719.5,1718.9,2.248]
[1693359382731,22.81191697,1719.5,1719.0,2.87348065]
[1693359386392,22.7513557,1719.5,1719.0,2.87348065]
[1693359387361,25.74873827,1719.5,1719.0,2.87348065]
[1693359388796,22.7513557,1719.5,1719.0,2.87348065]
[1693359389599,22.7513557,1719.5,1718.9,0.60909881]
[1693359389907,22.7513557,1719.5,1718.9,4.4935365]
[1693359390223,22.7513557,1719.5,1719.0,1.01095704]
[1693359393699,24.1583557,1719.5,1719.0,1.01095704]
[1693359393905,2.41583557,1719.4,1718.9,0.60909881]
[1693359394080,17.44928,1719.3,1719.0,1.01102146]
[1693359394282,17.44928,1719.3,1718.8,1.52274702]
[1693359394283,26.39446,1719.3,1718.8,1.52274702]
[1693359394492,3.0,1719.2,1718.8,5.40725133]
[1693359394694,3.0,1719.2,1718.9,1.01102366]
[1693359394695,11.63412,1719.1,1718.9,1.01102366]
[1693359394892,3.0,1719.0,1718.9,1.01102366]
[1693359395111,14.63466,1719.0,1718.9,1.01102366]
[1693359396185,14.63466,1719.0,1718.8,1.62012247]
[1693359396394,14.63466,1719.0,1718.9,1.01102366]
[1693359397327,14.63466,1719.0,1718.8,1.62012247]
[1693359400335,14.63466,1719.0,1718.9,1.01102366]
[1693359400713,14.63466,1719.0,1718.8,0.47212707]
[1693359405437,14.63466,1719.0,1718.7,2.1875]
[1693359405604,14.63466,1719.0,1718.8,1.01104149]
[1693359406229,15.09960404,1719.0,1718.8,1.01104149]
[1693359406433,15.09960404,1719.0,1718.7,5.06098065]
[1693359406646,20.91693404,1719.0,1718.7,2.87348065]
[1693359407855,20.91693404,1719.0,1718.7,3.6157786]
[1693359409852,20.81693404,1719.0,1718.7,3.6157786]
[1693359410948,20.81693404,1719.0,1718.7,0.74229795]
[1693359413827,20.81693404,1719.0,1718.8,1.01105241]
[1693359414437,20.81693404,1719.0,1718.7,0.74229795]
[1693359416561,14.99960404,1719.0,1718.7,3.6157786]
[1693359416767,14.99960404,1719.0,1718.8,0.36157786]
[1693359417261,3.36494404,1719.0,1718.9,2.87348065]
[1693359417461,3.46494404,1719.0,1718.9,2.87348065]
[1693359417833,3.46494404,1719.0,1718.9,3.884454]
[1693359418156,3.0,1719.0,1718.9,4.44975719]
[1693359418666,8.8167,1719.2,1718.9,4.44975719]
[1693359418830,8.8167,1719.2,1718.9,3.43878384]
[1693359419032,8.8167,1719.2,1718.9,5.72418384]
[1693359419265,8.8167,1719.2,1719.0,0.57241838]
[1693359419441,8.8167,1719.2,1719.0,3.44589903]
[1693359421574,0.46109147,1719.3,1719.1,2.87348065]
[1693359421766,5.81607,1719.4,1719.1,4.28048065]
[1693359421965,5.81607,1719.4,1719.2,0.42804807]
[1693359422197,5.81607,1719.4,1719.2,3.30152872]
[1693359422879,6.27442249,1719.4,1719.2,3.30152872]
[1693359423078,3.0,1719.3,1719.2,3.30152872]
[1693359425898,14.63264,1719.3,1719.2,0.42804807]
[1693359426097,8.81632,1719.3,1719.0,2.22521838]
[1693359426305,8.81632,1719.3,1719.1,2.87348065]
[1693359428202,14.63264,1719.3,1719.1,2.87348065]
[1693359428500,3.0,1719.3,1719.1,3.21807055]
[1693359428694,3.0,1719.3,1719.2,1.407]
[1693359428894,3.45835249,1719.4,1719.2,4.28048065]
[1693359429104,5.81579,1719.5,1719.3,0.42804807]
[1693359429309,14.63204,1719.4,1719.0,3.57241838]
[1693359429497,14.63204,1719.4,1719.0,6.44589903]
[1693359429699,20.4481,1719.4,1719.0,6.44589903]
[1693359430018,22.1624,1719.4,1719.0,6.44589903]
[1693359430512,22.1624,1719.4,1719.0,3.44589903]
[1693359430811,24.37864,1719.4,1719.0,2.87348065]
[1693359435792,22.1624,1719.4,1719.0,2.87348065]
[1693359436407,16.34634,1719.4,1719.0,2.87348065]
[1693359438322,16.34634,1719.4,1719.1,1.01089254]
[1693359439021,16.34634,1719.4,1719.0,2.87348065]
[1693359443527,16.80253284,1719.4,1719.0,2.87348065]
[1693359444027,10.98647284,1719.4,1719.0,2.87348065]
[1693359444537,16.80245284,1719.4,1719.0,3.7413386]
[1693359444718,22.61843284,1719.4,1719.0,2.87348065]
[1693359445244,16.80245284,1719.4,1719.0,2.87348065]
[1693359446039,22.61843284,1719.4,1719.0,2.87348065]
[1693359446209,16.80245284,1719.4,1719.0,2.87348065]
[1693359447857,22.61843284,1719.4,1719.0,2.87348065]
[1693359448311,16.80245284,1719.4,1719.0,2.87348065]
[1693359448512,22.61843284,1719.4,1719.0,2.87348065]
[1693359448949,25.46186912,1719.4,1718.9,2.89449881]
[1693359449157,26.86886912,1719.4,1718.8,12.93909881]
[1693359449330,1.407,1719.2,1718.8,15.20348065]
[1693359449646,17.45118,1719.1,1718.8,12.33]
[1693359449844,3.0,1719.0,1718.8,12.33]
[1693359450044,11.63534,1718.9,1718.8,12.33]
[1693359450251,14.63534,1718.9,1718.6,5.79669881]
[1693359450414,11.63534,1718.9,1718.7,1.01106959]
[1693359450841,11.63534,1718.9,1718.6,0.60909881]
[1693359451044,11.63534,1718.9,1718.6,1.62018956]
[1693359451552,5.81767,1718.9,1718.6,5.09233334]
[1693359451762,5.81767,1718.9,1718.7,1.01109075]
[1693359453265,5.81767,1718.9,1718.7,3.8845714]
[1693359453426,5.81767,1718.9,1718.7,2.87348065]
[1693359454937,5.81767,1718.9,1718.8,1.01104315]
[1693359455234,5.81767,1718.9,1718.8,1.46040541]
[1693359455435,8.81767,1718.9,1718.8,1.46040541]
[1693359459664,8.81767,1718.9,1718.8,1.01104315]
[1693359461304,9.27725486,1718.9,1718.7,2.87348065]
[1693359461663,9.27725486,1718.9,1718.8,1.01104619]
[1693359462166,9.27725486,1718.9,1718.7,2.87348065]
[1693359462905,9.27725486,1718.9,1718.8,1.01104719]
[1693359463216,9.27725486,1718.9,1718.7,2.87348065]
[1693359465419,9.27725486,1718.9,1718.7,3.8010178]
[1693359465926,9.27725486,1718.9,1718.6,0.60909881]
[1693359466141,3.0,1718.8,1718.6,3.88457231]
[1693359466441,8.81826,1718.8,1718.6,2.87348065]
[1693359467327,14.63652,1718.8,1718.5,2.79669881]
[1693359467491,20.45478,1718.8,1718.6,1.01114035]
[1693359468112,14.63652,1718.8,1718.6,1.01114035]
[1693359468300,16.90684149,1718.8,1718.6,1.01114035]
[1693359468505,22.72510149,1718.8,1718.4,0.61753681]
[1693359468703,22.72510149,1718.8,1718.5,1.01122108]
[1693359469194,22.72510149,1718.8,1718.4,2.88191865]
[1693359470324,22.72510149,1718.8,1718.4,0.008438]
[1693359471521,14.63652,1718.8,1718.5,1.01120439]
[1693359471828,14.63652,1718.8,1718.5,2.87348065]
[1693359472009,14.63652,1718.8,1718.5,5.18628065]
[1693359473840,20.45478,1718.8,1718.5,5.18628065]
[1693359474336,20.45478,1718.8,1718.5,5.7666624]
[1693359477447,20.45478,1718.8,1718.5,2.3128]
[1693359477732,20.45478,1718.8,1718.4,0.61753681]
[1693359477976,20.45478,1718.8,1718.5,1.01122185]
[1693359480475,20.45478,1718.8,1718.4,0.008438]
[1693359480606,20.45478,1718.8,1718.5,1.01124227]
[1693359480906,23.44763949,1718.8,1718.5,1.01124227]
[1693359482701,23.44763949,1718.8,1718.4,0.61753681]
[1693359482933,20.45478,1718.8,1718.5,1.0112401]
[1693359483140,14.63652,1718.8,1718.5,3.88472075]
[1693359483338,14.63652,1718.8,1718.5,2.87348065]
[1693359483542,14.63652,1718.8,1718.6,1.01118499]
[1693359488329,14.63652,1718.8,1718.6,3.88466564]
[1693359488661,14.63652,1718.8,1718.6,3.3228571]
[1693359489662,3.0,1718.8,1718.6,3.3228571]
[1693359489862,3.0,1718.8,1718.7,3.88461371]
[1693359491279,8.81805,1718.8,1718.7,3.88461371]
[1693359493782,3.0,1718.8,1718.7,3.88461371]
[1693359493934,6.27750486,1718.9,1718.7,3.88461371]
[1693359493935,0.45958486,1718.9,1718.7,6.70636624]
[1693359494135,14.6351,1719.0,1718.8,1.01113306]
[1693359494369,8.8175,1719.0,1718.9,2.87348065]
[1693359494544,0.47524382,1719.1,1718.9,3.26194202]
[1693359494752,5.81683,1719.2,1718.9,3.26194202]
[1693359494950,5.81683,1719.2,1719.0,1.01099156]
[1693359495136,5.81683,1719.2,1719.1,2.87348065]
[1693359495470,11.6338,1719.2,1719.1,3.26192787]
[1693359495847,12.10303456,1719.2,1719.1,3.26192787]
[1693359496167,15.10303456,1719.2,1719.1,3.26192787]
[1693359496369,0.46923456,1719.2,1719.1,5.67986308]
[1693359496539,5.81638,1719.3,1719.1,4.66892787]
[1693359496740,5.81638,1719.3,1719.2,0.56798631]
[1693359496939,5.81638,1719.3,1719.2,3.44146696]
[1693359497370,5.81614,1719.4,1719.2,3.44146696]
[1693359497758,3.0,1719.3,1719.2,3.44146696]
[1693359499281,8.81632,1719.3,1719.2,3.44146696]
[1693359499948,3.0,1719.3,1719.2,3.44146696]
[1693359500796,8.81632,1719.3,1719.2,3.44146696]
[1693359502094,3.0,1719.3,1719.2,3.44146696]
[1693359503362,9.27370859,1719.4,1719.2,3.44146696]
[1693359503563,8.81608,1719.4,1719.3,2.87348065]
[1693359506205,14.63216,1719.4,1719.3,2.87348065]
[1693359507096,8.81608,1719.4,1719.3,2.87348065]
[1693359507597,8.81608,1719.4,1719.3,3.21762735]
[1693359511591,3.0,1719.4,1719.3,3.21762735]
[1693359516664,3.4602524,1719.5,1719.3,4.22840276]
[1693359516950,3.4602524,1719.5,1719.3,3.21762735]
[1693359517115,3.4602524,1719.5,1719.4,0.32176273]
[1693359517435,3.4602524,1719.5,1719.4,3.19524338]
[1693359520345,9.2758924,1719.5,1719.4,2.87348065]
[1693359522207,9.2758924,1719.5,1719.4,3.88425591]
[1693359522411,9.2758924,1719.5,1719.4,2.87348065]
[1693359522621,9.2758924,1719.5,1719.4,3.88425731]
[1693359529746,8.66943681,1719.5,1719.4,4.49266598]
[1693359529946,8.66943681,1719.5,1719.4,5.03319648]
[1693359530145,8.66943681,1719.5,1719.4,4.42477046]
[1693359530449,8.66943681,1719.5,1719.4,5.03319648]
[1693359530850,2.85379681,1719.5,1719.4,5.03319648]
[1693359531222,2.85379681,1719.5,1719.4,4.42477046]
[1693359531752,2.85379681,1719.5,1719.4,5.03319648]
[1693359534023,3.32434669,1719.5,1719.4,5.03319648]
[1693359537774,9.13998669,1719.5,1719.4,5.03319648]
[1693359538897,9.13998669,1719.5,1719.4,4.49266598]
[1693359540500,9.13998669,1719.5,1719.4,5.40530501]
[1693359541095,9.13998669,1719.5,1719.4,4.79687899]
[1693359541458,9.13998669,1719.5,1719.4,5.40689567]
[1693359541674,9.13998669,1719.5,1719.4,4.79687899]
[1693359542704,9.13998669,1719.5,1719.4,5.40699412]
[1693359542906,9.13998669,1719.5,1719.4,4.49435509]
[1693359543501,9.13998669,1719.5,1719.4,5.40699412]
[1693359544071,9.13998669,1719.5,1719.4,4.49435509]
[1693359544507,3.32434669,1719.5,1719.4,5.15673971]
[1693359548429,3.32434669,1719.5,1719.4,4.54662458]
[1693359549230,3.32434669,1719.5,1719.4,3.88423996]
[1693359552335,9.13998669,1719.5,1719.4,3.88423996]
[1693359552628,9.13998669,1719.5,1719.4,2.87348065]
[1693359553009,9.13998669,1719.5,1719.2,2.86461513]
[1693359553221,9.13998669,1719.5,1719.1,1.52275416]
[1693359553222,22.17826669,1719.5,1719.1,1.52275416]
[1693359553426,22.17826669,1719.5,1719.2,1.01084774]
[1693359553427,0.91399867,1719.4,1719.2,1.01084774]
[1693359553621,6.73011867,1719.4,1719.2,1.01084774]
[1693359553862,3.0,1719.3,1719.2,1.01084774]
[1693359556254,8.81632,1719.3,1719.2,1.01084774]
[1693359560775,14.63264,1719.3,1719.2,1.01084774]
[1693359560973,16.996986,1719.3,1719.2,1.01084774]
[1693359561271,16.996986,1719.3,1719.0,0.61011513]
[1693359561569,16.996986,1719.3,1719.0,4.49450319]
[1693359561798,16.996986,1719.3,1719.1,1.01090741]
[1693359563079,16.996986,1719.3,1719.0,2.87348065]
[1693359563278,16.996986,1719.3,1719.1,1.01091006]
[1693359564396,14.63264,1719.3,1719.1,1.01091006]
[1693359564940,15.08719074,1719.3,1719.1,1.01091006]
[1693359565985,15.96261426,1719.3,1719.1,1.01091006]
[1693359569185,23.18593426,1719.3,1719.0,2.87348065]
[1693359569566,17.36961426,1719.3,1719.0,2.87348065]
[1693359569966,19.86694569,1719.3,1719.0,2.87348065]
[1693359570491,12.64362569,1719.3,1719.0,2.87348065]
[1693359571457,18.45994569,1719.3,1718.9,0.61023889]
[1693359571657,18.45994569,1719.3,1718.9,1.62117518]
[1693359571911,18.45994569,1719.3,1719.0,1.01093629]
[1693359572082,1.84599457,1719.2,1718.9,0.61023889]
[1693359572270,7.66273457,1719.2,1718.9,0.61023889]
[1693359572586,3.0,1719.1,1718.9,0.61023889]
[1693359572882,3.0,1719.1,1718.9,1.62117627]
[1693359573182,3.0,1719.1,1718.9,4.49465692]
[1693359573386,1.8717,1719.2,1719.0,1.01093738]
[1693359573387,3.0,1719.2,1719.0,1.01093738]
[1693359575705,8.81666,1719.2,1719.0,1.01093738]
[1693359575990,8.81666,1719.2,1719.0,3.88441803]
[1693359576161,8.81666,1719.2,1719.0,2.87348065]
[1693359579099,8.81666,1719.2,1718.9,2.87903889]
[1693359579315,14.63332,1719.2,1719.0,1.01093465]
[1693359581294,8.81666,1719.2,1719.0,1.01093465]
[1693359584691,3.0,1719.2,1719.0,4.56076072]
[1693359584997,3.0,1719.2,1719.0,3.54982607]
[1693359585195,3.17029179,1719.2,1719.0,3.54982607]